[Event "Titled Tuesday Blitz June 27 Late 2023"]
[White "zano2023"]
[Black "Szente Varga, Fruzsina"]
[BlackFideId "712264"]
[WhiteElo "2164"]
[BlackElo "2324"]
[Result "1-0"]
[Round "8"]
[TimeControl "180+2"]
[Date "2023.06.27"]
[WhiteClock "0:00:32"]
[BlackClock "0:00:03"]
[Board "121"]

1. d4 {[%clk 0:03:00]}  Nf6 {[%clk 0:02:59]} 2. Nd2 {[%clk 0:02:58]}  d5 {[%clk 0:02:58]} 3. Ngf3 {[%clk 0:02:58]}  g6 {[%clk 0:02:58]} 4. e3 {[%clk 0:02:58]}  Bg7 {[%clk 0:02:56]} 5. Bd3 {[%clk 0:02:59]}  O-O {[%clk 0:02:56]} 6. O-O {[%clk 0:02:59]}  c5 {[%clk 0:02:57]} 7. c3 {[%clk 0:02:59]}  c4 {[%clk 0:02:57]} 8. Bc2 {[%clk 0:02:59]}  Nc6 {[%clk 0:02:58]} 9. Qe2 {[%clk 0:02:59]}  Re8 {[%clk 0:02:57]} 10. Ne5 {[%clk 0:02:51]}  Nxe5 {[%clk 0:02:36]} 11. dxe5 {[%clk 0:02:52]}  Nd7 {[%clk 0:02:36]} 12. f4 {[%clk 0:02:52]}  Nc5 {[%clk 0:02:35]} 13. e4 {[%clk 0:02:50]}  e6 {[%clk 0:02:25]} 14. exd5 {[%clk 0:02:48]}  exd5 {[%clk 0:02:26]} 15. Nf3 {[%clk 0:02:43]}  Bg4 {[%clk 0:02:19]} 16. h3 {[%clk 0:02:42]}  Bd7 {[%clk 0:02:08]} 17. Be3 {[%clk 0:02:42]}  Qc7 {[%clk 0:02:03]} 18. Bd4 {[%clk 0:02:30]}  b5 {[%clk 0:01:49]} 19. Qf2 {[%clk 0:02:12]}  Ne6 {[%clk 0:01:45]} 20. Be3 {[%clk 0:02:08]}  a5 {[%clk 0:01:36]} 21. Nd4 {[%clk 0:02:05]}  Nxd4 {[%clk 0:01:28]} 22. Bxd4 {[%clk 0:02:04]}  b4 {[%clk 0:01:26]} 23. Rae1 {[%clk 0:01:59]}  Rab8 {[%clk 0:01:16]} 24. f5 {[%clk 0:01:51]}  bxc3 {[%clk 0:01:05]} 25. fxg6 {[%clk 0:01:48]}  fxg6 {[%clk 0:00:54]} 26. Qf7+ {[%clk 0:01:38]}  Kh8 {[%clk 0:00:54]} 27. e6 {[%clk 0:01:38]}  Bxd4+ {[%clk 0:00:53]} 28. Kh1 {[%clk 0:01:31]}  Qg3 {[%clk 0:00:30]} 29. bxc3 {[%clk 0:01:18]}  Be5 {[%clk 0:00:29]} 30. Rxe5 {[%clk 0:01:18]}  Qxe5 {[%clk 0:00:29]} 31. exd7 {[%clk 0:01:18]}  Red8 {[%clk 0:00:26]} 32. Bxg6 {[%clk 0:01:02]}  hxg6 {[%clk 0:00:21]} 33. Rf4 {[%clk 0:00:59]}  Qe1+ {[%clk 0:00:14]} 34. Kh2 {[%clk 0:00:58]}  Rf8 {[%clk 0:00:11]} 35. Qxf8+ {[%clk 0:00:49]}  Rxf8 {[%clk 0:00:11]} 36. Rxf8+ {[%clk 0:00:50]}  Kg7 {[%clk 0:00:11]} 37. d8=Q {[%clk 0:00:50]}  Qe5+ {[%clk 0:00:11]} 38. Kg1 {[%clk 0:00:49]}  Qe1+ {[%clk 0:00:12]} 39. Kh2 {[%clk 0:00:49]}  Qe5+ {[%clk 0:00:12]} 40. g3 {[%clk 0:00:49]}  Qe2+ {[%clk 0:00:11]} 41. Kg1 {[%clk 0:00:49]}  Qe3+ {[%clk 0:00:10]} 42. Rf2 {[%clk 0:00:46]}  Qxg3+ {[%clk 0:00:09]} 43. Rg2 {[%clk 0:00:46]}  Qe3+ {[%clk 0:00:09]} 44. Kh1 {[%clk 0:00:46]}  Qxh3+ {[%clk 0:00:09]} 45. Kg1 {[%clk 0:00:47]}  Qe3+ {[%clk 0:00:09]} 46. Kh2 {[%clk 0:00:46]}  Qe5+ {[%clk 0:00:09]} 47. Rg3 {[%clk 0:00:47]}  Qe2+ {[%clk 0:00:09]} 48. Kh3 {[%clk 0:00:47]}  Qh5+ {[%clk 0:00:09]} 49. Kg2 {[%clk 0:00:47]}  Qe2+ {[%clk 0:00:09]} 50. Kh3 {[%clk 0:00:48]}  Qh5+ {[%clk 0:00:10]} 51. Qh4 {[%clk 0:00:47]}  Qf5+ {[%clk 0:00:09]} 52. Qg4 {[%clk 0:00:46]}  Qf1+ {[%clk 0:00:09]} 53. Kh4 {[%clk 0:00:45]}  Qh1+ {[%clk 0:00:08]} 54. Rh3 {[%clk 0:00:45]}  Qe1+ {[%clk 0:00:08]} 55. Qg3 {[%clk 0:00:39]}  Qe7+ {[%clk 0:00:08]} 56. Kg4 {[%clk 0:00:39]}  Qe6+ {[%clk 0:00:07]} 57. Kf3 {[%clk 0:00:39]}  Qe4+ {[%clk 0:00:06]} 58. Kf2 {[%clk 0:00:38]}  Qc2+ {[%clk 0:00:06]} 59. Kg1 {[%clk 0:00:38]}  Qd1+ {[%clk 0:00:03]} 60. Kh2 {[%clk 0:00:37]}  Qe2+ {[%clk 0:00:03]} 61. Qg2 {[%clk 0:00:38]}  Qe5+ {[%clk 0:00:04]} 62. Rg3 {[%clk 0:00:37]}  Qh5+ {[%clk 0:00:04]} 63. Kg1 {[%clk 0:00:37]}  Qd1+ {[%clk 0:00:04]} 64. Qf1 {[%clk 0:00:37]}  Qd2 {[%clk 0:00:04]} 65. Qf2 {[%clk 0:00:34]}  Qd1+ {[%clk 0:00:04]} 66. Kg2 {[%clk 0:00:34]}  Qh5 {[%clk 0:00:02]} 67. Qd4+ {[%clk 0:00:34]}  Kh7 {[%clk 0:00:02]} 68. Rh3 {[%clk 0:00:32]}  Kh6 {[%clk 0:00:02]} 69. Rxh5+ {[%clk 0:00:32]}  gxh5 {[%clk 0:00:03]} 70. Qxd5 {[%clk 0:00:33]}  h4 {[%clk 0:00:03]} 71. Qxc4 {[%clk 0:00:32]} 1-0


[Site "https://www.chess.com"]

[Event "Titled Tuesday Blitz June 27 Late 2023"]
[White "Garmendiarov"]
[Black "Torres Dominguez, David"]
[BlackFideId "2220857"]
[WhiteElo "2307"]
[BlackElo "2113"]
[Result "1-0"]
[Round "8"]
[TimeControl "180+2"]
[Date "2023.06.27"]
[WhiteClock "0:00:22"]
[BlackClock "0:00:03"]
[Board "122"]

1. d4 {[%clk 0:02:59]}  e5 {[%clk 0:02:59]} 2. dxe5 {[%clk 0:03:00]}  d6 {[%clk 0:02:59]} 3. exd6 {[%clk 0:02:58]}  Bxd6 {[%clk 0:02:59]} 4. Nf3 {[%clk 0:02:57]}  Bg4 {[%clk 0:03:00]} 5. e3 {[%clk 0:02:55]}  Nc6 {[%clk 0:02:59]} 6. Be2 {[%clk 0:02:55]}  Qe7 {[%clk 0:02:59]} 7. Nd4 {[%clk 0:02:49]}  Nxd4 {[%clk 0:02:34]} 8. Bxg4 {[%clk 0:02:35]}  Ne6 {[%clk 0:02:13]} 9. O-O {[%clk 0:02:17]}  O-O-O {[%clk 0:02:12]} 10. Qf3 {[%clk 0:02:11]}  Nf6 {[%clk 0:02:09]} 11. Nc3 {[%clk 0:01:51]}  h5 {[%clk 0:02:08]} 12. Bxe6+ {[%clk 0:01:49]}  fxe6 {[%clk 0:02:07]} 13. b3 {[%clk 0:01:39]}  Ng4 {[%clk 0:01:59]} 14. g3 {[%clk 0:01:30]}  Ne5 {[%clk 0:01:41]} 15. Qe4 {[%clk 0:01:24]}  h4 {[%clk 0:01:37]} 16. Bb2 {[%clk 0:01:21]}  Rdf8 {[%clk 0:01:22]} 17. f4 {[%clk 0:00:51]}  Nd7 {[%clk 0:01:07]} 18. Nb5 {[%clk 0:00:47]}  Bc5 {[%clk 0:01:01]} 19. Bd4 {[%clk 0:00:35]}  hxg3 {[%clk 0:00:58]} 20. hxg3 {[%clk 0:00:35]}  Nf6 {[%clk 0:00:56]} 21. Bxf6 {[%clk 0:00:30]}  Rxf6 {[%clk 0:00:50]} 22. Kg2 {[%clk 0:00:28]}  Rfh6 {[%clk 0:00:19]} 23. Rh1 {[%clk 0:00:28]}  Qf6 {[%clk 0:00:10]} 24. Nd4 {[%clk 0:00:24]}  Rxh1 {[%clk 0:00:06]} 25. Rxh1 {[%clk 0:00:23]}  Rxh1 {[%clk 0:00:07]} 26. Kxh1 {[%clk 0:00:23]}  Qf5 {[%clk 0:00:03]} 27. Nxf5 {[%clk 0:00:22]} 1-0


[Site "https://www.chess.com"]

[Event "Titled Tuesday Blitz June 27 Late 2023"]
[White "Bulgurlu, Okan"]
[Black "Vargas, Mauricio"]
[WhiteFideId "6352316"]
[BlackFideId "4404572"]
[WhiteElo "2297"]
[BlackElo "1862"]
[Result "0-1"]
[Round "8"]
[TimeControl "180+2"]
[Date "2023.06.27"]
[WhiteClock "0:00:00"]
[BlackClock "0:00:55"]
[Board "123"]

1. e4 {[%clk 0:03:00]}  c6 {[%clk 0:03:00]} 2. d4 {[%clk 0:03:00]}  d5 {[%clk 0:03:00]} 3. Nc3 {[%clk 0:03:00]}  dxe4 {[%clk 0:03:01]} 4. Nxe4 {[%clk 0:03:01]}  Nf6 {[%clk 0:03:02]} 5. Ng3 {[%clk 0:02:58]}  h5 {[%clk 0:03:01]} 6. h4 {[%clk 0:02:57]}  Bg4 {[%clk 0:03:00]} 7. Be2 {[%clk 0:02:57]}  Bxe2 {[%clk 0:02:59]} 8. N1xe2 {[%clk 0:02:58]}  e6 {[%clk 0:03:00]} 9. Bg5 {[%clk 0:02:59]}  Be7 {[%clk 0:03:00]} 10. Qd2 {[%clk 0:02:57]}  Nbd7 {[%clk 0:03:00]} 11. c4 {[%clk 0:02:57]}  Qb6 {[%clk 0:03:00]} 12. a3 {[%clk 0:02:56]}  O-O-O {[%clk 0:02:59]} 13. O-O-O {[%clk 0:02:54]}  Qb3 {[%clk 0:02:46]} 14. Qc2 {[%clk 0:02:48]}  Qa2 {[%clk 0:02:45]} 15. Nc3 {[%clk 0:02:41]}  Qxc4 {[%clk 0:02:42]} 16. Rhe1 {[%clk 0:02:37]}  Nb6 {[%clk 0:02:37]} 17. f4 {[%clk 0:02:11]}  Bd6 {[%clk 0:02:17]} 18. Kb1 {[%clk 0:01:15]}  Rd7 {[%clk 0:02:09]} 19. Bxf6 {[%clk 0:01:14]}  gxf6 {[%clk 0:02:10]} 20. Nge4 {[%clk 0:01:15]}  Bxf4 {[%clk 0:02:01]} 21. b3 {[%clk 0:01:10]}  Qa6 {[%clk 0:01:51]} 22. Nc5 {[%clk 0:01:05]}  Qxa3 {[%clk 0:01:45]} 23. Nxd7 {[%clk 0:01:05]}  Nxd7 {[%clk 0:01:46]} 24. Rf1 {[%clk 0:01:00]}  Bg3 {[%clk 0:01:37]} 25. d5 {[%clk 0:00:46]}  exd5 {[%clk 0:01:24]} 26. Nxd5 {[%clk 0:00:45]}  Be5 {[%clk 0:01:23]} 27. Nc3 {[%clk 0:00:26]}  Nc5 {[%clk 0:01:23]} 28. Qa2 {[%clk 0:00:20]}  Qb4 {[%clk 0:01:11]} 29. Na4 {[%clk 0:00:10]}  Nxb3 {[%clk 0:01:08]} 30. Nb2 {[%clk 0:00:07]}  Nd2+ {[%clk 0:01:02]} 31. Rxd2 {[%clk 0:00:05]}  Qxd2 {[%clk 0:01:02]} 32. Rd1 {[%clk 0:00:00]}  Qxg2 {[%clk 0:00:55]} 0-1


[Site "https://www.chess.com"]

[Event "Titled Tuesday Blitz June 27 Late 2023"]
[White "Sokolov, Andrei"]
[Black "NtcPou"]
[WhiteFideId "11600306"]
[WhiteElo "2338"]
[BlackElo "1983"]
[Result "1/2-1/2"]
[Round "8"]
[TimeControl "180+2"]
[Date "2023.06.27"]
[WhiteClock "0:00:03"]
[BlackClock "0:01:20"]
[Board "124"]

1. d4 {[%clk 0:03:00]}  d5 {[%clk 0:02:58]} 2. c4 {[%clk 0:03:01]}  c6 {[%clk 0:02:58]} 3. Nc3 {[%clk 0:03:00]}  Nf6 {[%clk 0:02:58]} 4. cxd5 {[%clk 0:03:00]}  cxd5 {[%clk 0:02:57]} 5. Bf4 {[%clk 0:03:01]}  Nc6 {[%clk 0:02:57]} 6. e3 {[%clk 0:03:01]}  Bg4 {[%clk 0:02:54]} 7. Qb3 {[%clk 0:03:00]}  Na5 {[%clk 0:02:53]} 8. Qa4+ {[%clk 0:02:57]}  Bd7 {[%clk 0:02:54]} 9. Qd1 {[%clk 0:02:53]}  e6 {[%clk 0:02:54]} 10. Nf3 {[%clk 0:02:44]}  Be7 {[%clk 0:02:53]} 11. Bd3 {[%clk 0:02:42]}  O-O {[%clk 0:02:52]} 12. O-O {[%clk 0:02:42]}  Rc8 {[%clk 0:02:53]} 13. Qe2 {[%clk 0:02:32]}  a6 {[%clk 0:02:52]} 14. Rac1 {[%clk 0:02:14]}  b5 {[%clk 0:02:48]} 15. b3 {[%clk 0:02:03]}  Qb6 {[%clk 0:02:42]} 16. Ne5 {[%clk 0:01:55]}  Rfd8 {[%clk 0:02:38]} 17. Bg5 {[%clk 0:01:40]}  h6 {[%clk 0:02:33]} 18. Bxf6 {[%clk 0:01:35]}  Bxf6 {[%clk 0:02:32]} 19. f4 {[%clk 0:01:31]}  Rc7 {[%clk 0:02:25]} 20. Bb1 {[%clk 0:01:27]}  Be8 {[%clk 0:02:19]} 21. Qd3 {[%clk 0:01:20]}  g6 {[%clk 0:02:19]} 22. Ne2 {[%clk 0:00:51]}  Rdc8 {[%clk 0:02:17]} 23. Rxc7 {[%clk 0:00:49]}  Rxc7 {[%clk 0:02:16]} 24. Rf3 {[%clk 0:00:35]}  b4 {[%clk 0:02:06]} 25. Rh3 {[%clk 0:00:26]}  Kg7 {[%clk 0:02:05]} 26. Ng4 {[%clk 0:00:20]}  h5 {[%clk 0:02:00]} 27. Nxf6 {[%clk 0:00:20]}  Kxf6 {[%clk 0:02:01]} 28. g4 {[%clk 0:00:13]}  hxg4 {[%clk 0:01:56]} 29. Rh4 {[%clk 0:00:13]}  Bb5 {[%clk 0:01:54]} 30. Qd2 {[%clk 0:00:13]}  Bxe2 {[%clk 0:01:54]} 31. Qxe2 {[%clk 0:00:11]}  Rc1+ {[%clk 0:01:54]} 32. Kg2 {[%clk 0:00:12]}  Rxb1 {[%clk 0:01:53]} 33. Qxg4 {[%clk 0:00:13]}  Qb5 {[%clk 0:01:25]} 34. Qg5+ {[%clk 0:00:12]}  Kg7 {[%clk 0:01:26]} 35. Qh6+ {[%clk 0:00:12]}  Kf6 {[%clk 0:01:24]} 36. Qg5+ {[%clk 0:00:12]}  Kg7 {[%clk 0:01:23]} 37. Qh6+ {[%clk 0:00:05]}  Kf6 {[%clk 0:01:20]} 38. Qg5+ {[%clk 0:00:03]} 1/2-1/2


[Site "https://www.chess.com"]

[Event "Titled Tuesday Blitz June 27 Late 2023"]
[White "Vila Dupla, Aurelio"]
[Black "Dmitriev, Sergey"]
[WhiteFideId "2203383"]
[BlackFideId "14101785"]
[WhiteElo "2188"]
[BlackElo "1952"]
[Result "1-0"]
[Round "8"]
[TimeControl "180+2"]
[Date "2023.06.27"]
[WhiteClock "0:01:10"]
[BlackClock "0:00:56"]
[Board "127"]

1. Nf3 {[%clk 0:03:00]}  d6 {[%clk 0:02:59]} 2. d4 {[%clk 0:02:59]}  g6 {[%clk 0:02:59]} 3. g3 {[%clk 0:02:58]}  Bg7 {[%clk 0:03:00]} 4. Bg2 {[%clk 0:02:59]}  Nf6 {[%clk 0:03:00]} 5. O-O {[%clk 0:02:59]}  O-O {[%clk 0:03:00]} 6. c4 {[%clk 0:02:59]}  b6 {[%clk 0:03:00]} 7. Nc3 {[%clk 0:02:36]}  Bb7 {[%clk 0:02:59]} 8. d5 {[%clk 0:02:36]}  Nbd7 {[%clk 0:02:55]} 9. Nd4 {[%clk 0:02:36]}  a5 {[%clk 0:02:51]} 10. b3 {[%clk 0:02:33]}  Nc5 {[%clk 0:02:50]} 11. Bb2 {[%clk 0:02:32]}  Ng4 {[%clk 0:02:36]} 12. h3 {[%clk 0:02:24]}  Ne5 {[%clk 0:02:34]} 13. f4 {[%clk 0:02:20]}  Ned7 {[%clk 0:02:33]} 14. e4 {[%clk 0:02:20]}  e6 {[%clk 0:02:21]} 15. dxe6 {[%clk 0:02:16]}  Nxe6 {[%clk 0:02:21]} 16. Nd5 {[%clk 0:02:11]}  Nxd4 {[%clk 0:02:19]} 17. Bxd4 {[%clk 0:02:09]}  Bxd4+ {[%clk 0:02:16]} 18. Qxd4 {[%clk 0:02:09]}  Bxd5 {[%clk 0:02:15]} 19. Qxd5 {[%clk 0:01:55]}  Nc5 {[%clk 0:02:11]} 20. Rad1 {[%clk 0:01:51]}  Qf6 {[%clk 0:02:06]} 21. e5 {[%clk 0:01:47]}  Qe7 {[%clk 0:01:53]} 22. exd6 {[%clk 0:01:44]}  Qe3+ {[%clk 0:01:46]} 23. Kh2 {[%clk 0:01:42]}  cxd6 {[%clk 0:01:44]} 24. Qd4 {[%clk 0:01:31]}  Qe2 {[%clk 0:01:33]} 25. Rd2 {[%clk 0:01:28]}  Ne6 {[%clk 0:01:19]} 26. Rxe2 {[%clk 0:01:22]}  Nxd4 {[%clk 0:01:18]} 27. Rd2 {[%clk 0:01:22]}  Nf5 {[%clk 0:01:12]} 28. Bxa8 {[%clk 0:01:20]}  Rxa8 {[%clk 0:01:12]} 29. Re1 {[%clk 0:01:19]}  a4 {[%clk 0:01:10]} 30. g4 {[%clk 0:01:18]}  Nh4 {[%clk 0:01:09]} 31. Kg3 {[%clk 0:01:16]}  g5 {[%clk 0:01:04]} 32. fxg5 {[%clk 0:01:15]}  Ng6 {[%clk 0:01:04]} 33. Rxd6 {[%clk 0:01:13]}  axb3 {[%clk 0:01:05]} 34. axb3 {[%clk 0:01:13]}  Ra3 {[%clk 0:01:04]} 35. Rxb6 {[%clk 0:01:12]}  Ra1 {[%clk 0:00:56]} 36. Rxa1 {[%clk 0:01:10]} 1-0


[Site "https://www.chess.com"]

[Event "Titled Tuesday Blitz June 27 Late 2023"]
[White "Ricaurte Lopez, Juan Carlos"]
[Black "Shubin, Daniel"]
[WhiteFideId "3600327"]
[BlackFideId "30936470"]
[WhiteElo "2107"]
[BlackElo "2237"]
[Result "0-1"]
[Round "8"]
[TimeControl "180+2"]
[Date "2023.06.27"]
[WhiteClock "0:00:00"]
[BlackClock "0:02:07"]
[Board "128"]

1. e4 {[%clk 0:02:00]}  e6 {[%clk 0:02:56]} 2. d4 {[%clk 0:01:59]}  d5 {[%clk 0:02:57]} 3. exd5 {[%clk 0:01:59]}  exd5 {[%clk 0:02:56]} 4. Nf3 {[%clk 0:01:59]}  Nc6 {[%clk 0:02:56]} 5. Bb5 {[%clk 0:01:57]}  Bd6 {[%clk 0:02:56]} 6. O-O {[%clk 0:01:55]}  Ne7 {[%clk 0:02:56]} 7. Re1 {[%clk 0:01:52]}  O-O {[%clk 0:02:52]} 8. h3 {[%clk 0:01:52]}  a6 {[%clk 0:02:52]} 9. Ba4 {[%clk 0:01:48]}  b5 {[%clk 0:02:48]} 10. Bb3 {[%clk 0:01:47]}  Na5 {[%clk 0:02:49]} 11. Bg5 {[%clk 0:01:36]}  f6 {[%clk 0:02:46]} 12. Bd2 {[%clk 0:01:29]}  Nc4 {[%clk 0:02:44]} 13. Nc3 {[%clk 0:01:25]}  Nxb2 {[%clk 0:02:37]} 14. Qe2 {[%clk 0:01:05]}  Nc4 {[%clk 0:02:29]} 15. Bf4 {[%clk 0:00:52]}  Bxf4 {[%clk 0:02:23]} 16. Qxe7 {[%clk 0:00:29]}  Qxe7 {[%clk 0:02:23]} 17. Rxe7 {[%clk 0:00:27]}  Bd6 {[%clk 0:02:24]} 18. Nxd5 {[%clk 0:00:16]}  Bxe7 {[%clk 0:02:21]} 19. Nxe7+ {[%clk 0:00:14]}  Kf7 {[%clk 0:02:22]} 20. Nd5 {[%clk 0:00:13]}  c6 {[%clk 0:02:18]} 21. Nb4 {[%clk 0:00:12]}  Be6 {[%clk 0:02:14]} 22. Nxc6 {[%clk 0:00:11]}  Bd5 {[%clk 0:02:12]} 23. Nb4 {[%clk 0:00:05]}  Rfd8 {[%clk 0:02:13]} 24. Nxd5 {[%clk 0:00:03]}  Rxd5 {[%clk 0:02:14]} 25. a4 {[%clk 0:00:00]}  Re8 {[%clk 0:02:07]} 0-1


[Site "https://www.chess.com"]

[Event "Titled Tuesday Blitz June 27 Late 2023"]
[White "Vasquez Garrido, Nuremberg"]
[Black "campochess"]
[WhiteFideId "4432118"]
[WhiteElo "2061"]
[BlackElo "2155"]
[Result "1-0"]
[Round "8"]
[TimeControl "180+2"]
[Date "2023.06.27"]
[WhiteClock "0:00:18"]
[BlackClock "0:01:15"]
[Board "131"]

1. d4 {[%clk 0:03:00]}  Nf6 {[%clk 0:02:59]} 2. c4 {[%clk 0:03:00]}  c5 {[%clk 0:02:59]} 3. d5 {[%clk 0:03:00]}  b5 {[%clk 0:02:59]} 4. a4 {[%clk 0:02:57]}  bxc4 {[%clk 0:02:58]} 5. Nc3 {[%clk 0:02:56]}  g6 {[%clk 0:02:58]} 6. e4 {[%clk 0:02:56]}  d6 {[%clk 0:02:58]} 7. Nf3 {[%clk 0:02:57]}  Nbd7 {[%clk 0:02:56]} 8. Nd2 {[%clk 0:02:56]}  Bg7 {[%clk 0:02:55]} 9. Nxc4 {[%clk 0:02:56]}  O-O {[%clk 0:02:54]} 10. Bd3 {[%clk 0:02:53]}  Nb6 {[%clk 0:02:44]} 11. a5 {[%clk 0:02:49]}  Nxc4 {[%clk 0:02:43]} 12. Bxc4 {[%clk 0:02:50]}  Rb8 {[%clk 0:02:42]} 13. O-O {[%clk 0:02:49]}  Ng4 {[%clk 0:02:41]} 14. Be2 {[%clk 0:02:36]}  h5 {[%clk 0:02:38]} 15. h3 {[%clk 0:02:36]}  Nf6 {[%clk 0:02:37]} 16. Qc2 {[%clk 0:02:31]}  Nd7 {[%clk 0:02:35]} 17. Bg5 {[%clk 0:02:25]}  f6 {[%clk 0:02:23]} 18. Bd2 {[%clk 0:02:20]}  Ne5 {[%clk 0:02:23]} 19. f4 {[%clk 0:02:16]}  Nf7 {[%clk 0:02:22]} 20. e5 {[%clk 0:02:12]}  Bf5 {[%clk 0:02:19]} 21. Bd3 {[%clk 0:02:09]}  Rxb2 {[%clk 0:02:15]} 22. Qxb2 {[%clk 0:02:06]}  Bxd3 {[%clk 0:02:15]} 23. Rfe1 {[%clk 0:02:03]}  fxe5 {[%clk 0:02:11]} 24. fxe5 {[%clk 0:01:55]}  Nxe5 {[%clk 0:02:11]} 25. Qb3 {[%clk 0:01:53]}  c4 {[%clk 0:02:09]} 26. Qa3 {[%clk 0:01:46]}  Qc7 {[%clk 0:01:53]} 27. Be3 {[%clk 0:01:41]}  Bf5 {[%clk 0:01:50]} 28. Nb5 {[%clk 0:01:12]}  Qb7 {[%clk 0:01:47]} 29. Nd4 {[%clk 0:00:51]}  Qxd5 {[%clk 0:01:44]} 30. Nxf5 {[%clk 0:00:50]}  Rxf5 {[%clk 0:01:41]} 31. Bxa7 {[%clk 0:00:43]}  Nd3 {[%clk 0:01:40]} 32. Rad1 {[%clk 0:00:30]}  Bd4+ {[%clk 0:01:38]} 33. Bxd4 {[%clk 0:00:29]}  Qxd4+ {[%clk 0:01:38]} 34. Kh2 {[%clk 0:00:23]}  Nf2 {[%clk 0:01:15]} 35. Rxd4 {[%clk 0:00:18]} 1-0


[Site "https://www.chess.com"]

[Event "Titled Tuesday Blitz June 27 Late 2023"]
[White "Bluebaum, Matthias"]
[Black "Horvath, Dominik"]
[WhiteFideId "24651516"]
[BlackFideId "1642561"]
[WhiteElo "3058"]
[BlackElo "2906"]
[Result "0-1"]
[Round "9"]
[TimeControl "180+2"]
[Date "2023.06.27"]
[WhiteClock "0:01:43"]
[BlackClock "0:02:19"]
[Board "8"]

1. d4 {[%clk 0:02:59]}  Nf6 {[%clk 0:02:58]} 2. c4 {[%clk 0:02:56]}  c5 {[%clk 0:02:57]} 3. d5 {[%clk 0:02:56]}  b5 {[%clk 0:02:58]} 4. cxb5 {[%clk 0:02:55]}  a6 {[%clk 0:02:57]} 5. bxa6 {[%clk 0:02:55]}  e6 {[%clk 0:02:58]} 6. Nc3 {[%clk 0:02:54]}  exd5 {[%clk 0:02:58]} 7. Nxd5 {[%clk 0:02:54]}  Nxa6 {[%clk 0:02:59]} 8. e4 {[%clk 0:02:51]}  Nxd5 {[%clk 0:02:59]} 9. Qxd5 {[%clk 0:02:46]}  Nc7 {[%clk 0:02:59]} 10. Qe5+ {[%clk 0:02:44]}  Ne6 {[%clk 0:02:47]} 11. Bc4 {[%clk 0:02:43]}  Ba6 {[%clk 0:02:42]} 12. Bxa6 {[%clk 0:02:41]}  Qa5+ {[%clk 0:02:39]} 13. Bd2 {[%clk 0:02:38]}  Qxa6 {[%clk 0:02:39]} 14. Nf3 {[%clk 0:02:09]}  Bd6 {[%clk 0:02:36]} 15. Qd5 {[%clk 0:01:58]}  O-O {[%clk 0:02:34]} 16. b3 {[%clk 0:01:55]}  Rfe8 {[%clk 0:02:34]} 17. e5 {[%clk 0:01:47]}  Nd4 {[%clk 0:02:22]} 18. Qxd6 {[%clk 0:01:43]}  Qe2# {[%clk 0:02:19]} 0-1


[Site "https://www.chess.com"]

[Event "Titled Tuesday Blitz June 27 Late 2023"]
[White "Grischuk, Alexander"]
[Black "Tristan, Leonardo"]
[WhiteFideId "4126025"]
[BlackFideId "113816"]
[WhiteElo "3018"]
[BlackElo "2779"]
[Result "1-0"]
[Round "9"]
[TimeControl "180+2"]
[Date "2023.06.27"]
[WhiteClock "0:00:13"]
[BlackClock "0:00:00"]
[Board "11"]

1. d4 {[%clk 0:03:00]}  d5 {[%clk 0:03:00]} 2. Nf3 {[%clk 0:03:01]}  Nf6 {[%clk 0:03:00]} 3. Bg5 {[%clk 0:03:01]}  Ne4 {[%clk 0:02:58]} 4. Bh4 {[%clk 0:03:01]}  h5 {[%clk 0:02:56]} 5. h3 {[%clk 0:02:59]}  f6 {[%clk 0:02:48]} 6. Nfd2 {[%clk 0:02:59]}  g5 {[%clk 0:02:19]} 7. Nxe4 {[%clk 0:02:59]}  dxe4 {[%clk 0:02:20]} 8. Bg3 {[%clk 0:02:58]}  h4 {[%clk 0:02:18]} 9. Bh2 {[%clk 0:02:58]}  e5 {[%clk 0:01:55]} 10. e3 {[%clk 0:02:51]}  exd4 {[%clk 0:01:51]} 11. exd4 {[%clk 0:02:52]}  Bd6 {[%clk 0:01:51]} 12. Bxd6 {[%clk 0:02:44]}  Qxd6 {[%clk 0:01:51]} 13. Nc3 {[%clk 0:02:45]}  Nc6 {[%clk 0:01:25]} 14. d5 {[%clk 0:02:22]}  Ne5 {[%clk 0:01:02]} 15. Qd4 {[%clk 0:02:22]}  Bf5 {[%clk 0:00:50]} 16. O-O-O {[%clk 0:02:16]}  O-O-O {[%clk 0:00:50]} 17. Qxa7 {[%clk 0:02:09]}  Qb6 {[%clk 0:00:48]} 18. Qa8+ {[%clk 0:02:04]}  Kd7 {[%clk 0:00:47]} 19. Qa4+ {[%clk 0:02:05]}  Ke7 {[%clk 0:00:42]} 20. Rd2 {[%clk 0:01:02]}  c5 {[%clk 0:00:27]} 21. Qb5 {[%clk 0:00:34]}  Qxb5 {[%clk 0:00:23]} 22. Bxb5 {[%clk 0:00:34]}  Nf7 {[%clk 0:00:22]} 23. Re1 {[%clk 0:00:32]}  Nd6 {[%clk 0:00:23]} 24. Bd3 {[%clk 0:00:22]}  Kf7 {[%clk 0:00:21]} 25. Bxe4 {[%clk 0:00:19]}  Rhe8 {[%clk 0:00:13]} 26. Rde2 {[%clk 0:00:15]}  Nxe4 {[%clk 0:00:10]} 27. Nxe4 {[%clk 0:00:16]}  Bxe4 {[%clk 0:00:08]} 28. Rxe4 {[%clk 0:00:17]}  Rxe4 {[%clk 0:00:08]} 29. Rxe4 {[%clk 0:00:17]}  Rxd5 {[%clk 0:00:09]} 30. c4 {[%clk 0:00:18]}  Rf5 {[%clk 0:00:08]} 31. f3 {[%clk 0:00:18]}  b6 {[%clk 0:00:07]} 32. Kc2 {[%clk 0:00:18]}  Kg6 {[%clk 0:00:06]} 33. a3 {[%clk 0:00:15]}  Kf7 {[%clk 0:00:05]} 34. Kc3 {[%clk 0:00:15]}  Kg6 {[%clk 0:00:04]} 35. Kb3 {[%clk 0:00:14]}  Kf7 {[%clk 0:00:00]} 36. Ka4 {[%clk 0:00:13]} 1-0


[Site "https://www.chess.com"]

[Event "Titled Tuesday Blitz June 27 Late 2023"]
[White "Salem, A.R. Saleh"]
[Black "Ohanyan, Emin"]
[WhiteFideId "9301348"]
[BlackFideId "13312022"]
[WhiteElo "2992"]
[BlackElo "2797"]
[Result "1-0"]
[Round "9"]
[TimeControl "180+2"]
[Date "2023.06.27"]
[WhiteClock "0:01:08"]
[BlackClock "0:00:02"]
[Board "12"]

1. d4 {[%clk 0:03:00]}  Nf6 {[%clk 0:02:59]} 2. c4 {[%clk 0:03:01]}  e6 {[%clk 0:02:59]} 3. Nc3 {[%clk 0:03:02]}  Bb4 {[%clk 0:03:00]} 4. a3 {[%clk 0:03:03]}  Bxc3+ {[%clk 0:02:58]} 5. bxc3 {[%clk 0:03:04]}  d6 {[%clk 0:02:57]} 6. f3 {[%clk 0:03:04]}  e5 {[%clk 0:02:53]} 7. e4 {[%clk 0:03:04]}  c5 {[%clk 0:02:34]} 8. Bd3 {[%clk 0:03:04]}  cxd4 {[%clk 0:02:25]} 9. cxd4 {[%clk 0:03:04]}  exd4 {[%clk 0:02:25]} 10. Ne2 {[%clk 0:03:04]}  Nc6 {[%clk 0:02:26]} 11. O-O {[%clk 0:03:05]}  O-O {[%clk 0:02:27]} 12. Rb1 {[%clk 0:03:02]}  Nd7 {[%clk 0:01:57]} 13. Bb2 {[%clk 0:02:55]}  Qa5 {[%clk 0:01:47]} 14. Nxd4 {[%clk 0:02:49]}  Qc5 {[%clk 0:01:23]} 15. Be2 {[%clk 0:02:47]}  Nde5 {[%clk 0:01:24]} 16. Kh1 {[%clk 0:02:22]}  Nxc4 {[%clk 0:01:18]} 17. Bxc4 {[%clk 0:02:22]}  Qxc4 {[%clk 0:01:19]} 18. Rc1 {[%clk 0:02:22]}  Qa6 {[%clk 0:00:40]} 19. Nc2 {[%clk 0:02:03]}  Rd8 {[%clk 0:00:34]} 20. Ne3 {[%clk 0:02:02]}  Be6 {[%clk 0:00:31]} 21. f4 {[%clk 0:02:03]}  f6 {[%clk 0:00:29]} 22. g4 {[%clk 0:02:03]}  Rac8 {[%clk 0:00:18]} 23. g5 {[%clk 0:02:03]}  fxg5 {[%clk 0:00:18]} 24. f5 {[%clk 0:02:03]}  Bf7 {[%clk 0:00:19]} 25. f6 {[%clk 0:01:49]}  Ne5 {[%clk 0:00:12]} 26. Rxc8 {[%clk 0:01:49]}  Rxc8 {[%clk 0:00:13]} 27. Nf5 {[%clk 0:01:50]}  Re8 {[%clk 0:00:04]} 28. Nxd6 {[%clk 0:01:41]}  Qc6 {[%clk 0:00:02]} 29. fxg7 {[%clk 0:01:21]}  Bg6 {[%clk 0:00:02]} 30. Qd5+ {[%clk 0:01:09]}  Qxd5 {[%clk 0:00:02]} 31. exd5 {[%clk 0:01:08]}  Nf7 {[%clk 0:00:02]} 1-0


[Site "https://www.chess.com"]